[Event "XV American Continental 2022"]
[Site "San Salvador"]
[Date "2022.05.06"]
[Round "6.4"]
[White "Jimenez Garcia, Emmanuel"]
[Black "Quesada Perez, Yasser"]
[Result "0-1"]
[ECO "A06"]
[WhiteElo "2422"]
[BlackElo "2560"]
[Annotator "TA"]
[PlyCount "104"]
[EventDate "2022.05.02"]
[EventCountry "ESA"]
[SourceTitle "playchess.com"]
[Source "ChessBase"]
[SourceQuality "1"]
[TimeControl "40/5400+30:1800+30"]

{[%evp 9,104,0,0,-2,0,-50,-9,-26,-15,-14,-8,-5,-14,-54,2,-30,-30,-25,51,52,59,84,56,35,77,91,72,63,78,82,72,79,78,85,82,89,80,51,75,93,99,98,96,99,77,-20,-19,-16,-16,-29,0,-41,-31,-47,-25,-33,0,-63,-70,-72,-46,-59,-60,-58,-45,-74,-81,-61,-63,-138,-104,-212,-205,-215,-206,-227,-223,-314,-193,-297,-297,-272,-286,-273,-259,-379,-353,-385,-370,-910,-553,-1178,-1170,-1460,-1393,-1246,-884]} 1. Nf3 {[%emt 0:00:09]} d5 {[%emt 0:00:04]} 2. g3 {[%emt 0:00:05]} Nc6 {[%emt 0:00:04]} 3. d4 {[%emt 0:00:07]} Bf5 {[%emt 0:00:05]} 4. a3 {[%emt 0:03:30]} e6 {[%emt 0:07:56]} 5. Bg2 {[%emt 0:08:55]} Be7 {[%emt 0:00:30]} 6. c4 {[%emt 0:05:22] D02: 1 d4 d5 2 Nf3 sidelines, including 2...Nf6 3 g3 and 2...Nf6 3 Bf4.} Nf6 {[%emt 0:01:18] [#]} 7. c5 $146 {[%emt 0:06:33]} (7. cxd5 $11 exd5 8. Nc3) ({Predecessor:} 7. O-O O-O 8. cxd5 exd5 9. Nc3 Ne4 10. e3 Na5 11. Nxe4 Bxe4 12. Ne1 Bxg2 13. Kxg2 Nc4 14. Nd3 c6 15. b3 Nd6 16. Bb2 Bf6 17. Rc1 {0-1 (31) Stradner,S (2163)-Konrad,E (2191) Austria 2015}) 7... a5 {[%emt 0:09:07]} 8. Nc3 {[%emt 0:01:08] The position is equal.} O-O {[%emt 0:00:14]} 9. Nh4 {[%emt 0:16:12]} Bg4 {[%emt 0:10:21][%cal Bf5g4,Bg4h5,Bh5g6][%mdl 32]} 10. h3 {[%emt 0:00:55]} Bh5 {[%emt 0:00:04][%cal Of6e4]} 11. g4 {[%emt 0:04:00] [#]} Nd7 $1 {[%emt 0:00:13]} 12. Nf3 {[%emt 0:07:31]} (12. Nf5 $5 {[%cal Rf5e7]} Bg6 13. Nxe7+ Qxe7 14. Bf4 $14) 12... Bg6 {[%emt 0:00:05]} 13. Bf4 {[%emt 0:01:34]} e5 {[%emt 0:20:01]} ({Black should play} 13... b6 $11) 14. dxe5 {[%emt 0:04:22]} Nxc5 {[%emt 0:03:50]} 15. Qxd5 {[%emt 0:03:24]} ({Much worse is} 15. Nxd5 Nd3+ 16. exd3 Qxd5 $11) 15... a4 {[%emt 0:17:42]} 16. O-O {[%emt 0:02:11]} Na5 {[%emt 0:00:03]} 17. Be3 {[%emt 0:14:23]} Nab3 {[%emt 0:00:05]} 18. Rad1 {[%emt 0:02:49]} c6 {[%emt 0:10:15]} 19. Qxd8 {[%emt 0:01:50]} Rfxd8 {[%emt 0:00:03]} 20. Nd4 {[%emt 0:00:39]} Na5 {[%emt 0:05:04]} 21. f4 {[%emt 0:03:47][%cal Bf2f4,Bf4f5][%mdl 32]} Nc4 {[%emt 0:02:04][%csl LRb2,LRe3]} 22. Bc1 {[%emt 0:00:02]} h6 {[%emt 0:02:49]} 23. Kh2 {[%emt 0:06:46]} Nb3 {[%emt 0:01:03]} 24. Nxb3 {[%emt 0:01:05]} axb3 {[%emt 0:00:02]} 25. Rxd8+ {[%emt 0:01:01]} Rxd8 {[%emt 0:00:04]} 26. f5 {[%emt 0:02:29]} Bh7 {[%emt 0:00:04]} 27. Rd1 {[%emt 0:01:01]} (27. Ne4 $16) 27... Rxd1 $11 {[%emt 0:00:32]} 28. Nxd1 {[%emt 0:00:01]} Nxe5 {[%emt 0:00:07]} 29. Kg3 {[%emt 0:01:56]} f6 {[%emt 0:00:23]} (29... Bd6 $5 {[%cal Re5d3]} 30. Bf4 g5 31. fxg6 Bxg6 $11) 30. Kf4 {[%emt 0:00:55]} Kf8 {[%emt 0:00:10]} 31. Ke4 {[%emt 0:00:25]} Bg8 {[%emt 0:01:40] And now ...Bd5+ would win.} 32. Kd4 {[%emt 0:00:01] Against Bd5} c5+ {[%emt 0:00:30]} 33. Kc3 {[%emt 0:00:01]} (33. Ke3 $11) 33... Bd8 $15 {[%emt 0:00:06][%cal Rd8a5]} 34. Kd2 {[%emt 0:00:24]} Ba5+ {[%emt 0:00:26]} 35. Ke3 {[%emt 0:01:11]} b5 {[%emt 0:00:17]} 36. Bb7 $1 {[%emt 0:00:18]} Bf7 {[%emt 0:03:14]} 37. Ke4 {[%emt 0:00:14]} Ke7 $1 {[%emt 0:01:27] Black is more active.} 38. Bf4 {[%emt 0:00:37]} Kd6 {[%emt 0:05:08]} 39. h4 {[%emt 0:00:54]} (39. Nf2 $15 c4 40. Nd1) 39... Bc4 {[%emt 0:00:12]} 40. Ke3 {[%emt 0:00:56] [#]} (40. Nf2 $17 {was called for.}) 40... Bd5 $1 $19 {[%emt 0:01:51]} 41. Ba6 {[%emt 0:04:30]} Bc6 {[%emt 0:10:16]} 42. Bc8 {[%emt 0:00:14] [#]} Be1 $1 {[%emt 0:01:02]} 43. h5 {[%emt 0:01:00]} (43. Be6 $142) 43... Bd5 {[%emt 0:10:01]} 44. Ba6 {[%emt 0:00:51]} (44. Bxe5+ {might work better.} Kxe5 45. Bd7) 44... Kc6 {[%emt 0:00:06]} 45. Bxe5 {[%emt 0:00:24]} fxe5 {[%emt 0:00:01][%mdl 4096] Endgame KBB-KBN} 46. Bc8 {[%emt 0:04:35]} Bf7 {[%emt 0:04:21] Strongly threatening ...c4.} 47. Kf3 {[%emt 0:13:25]} (47. g5 {was necessary.} Bxh5 48. gxh6 (48. f6 gxf6 49. gxh6 Bg6 $19) 48... gxh6 49. Be6) 47... c4 {[%emt 0:01:02]} 48. e3 {[%emt 0:00:41]} Bd2 {[%emt 0:00:55][%cal Oc4c3] White must now prevent ...c3!} 49. Ke4 $2 {[%emt 0:02:15]} (49. Kf2) 49... Kd6 {[%emt 0:00:26][%csl Gd6][%cal Rf7d5] Black is clearly winning.} 50. Bb7 {[%emt 0:00:31] Against Bd5+} Bc1 {[%emt 0:00:47]} 51. f6 {[%emt 0:01:15]} gxf6 {[%emt 0:00:13][%cal Oc1b2] Hoping for ...Bxb2!} 52. Kf5 {[%emt 0:00:02]} Be6+ {[%emt 0:00:57] Weighted Error Value: White=0.44/Black=0.21 (precise)} 0-1

[Event "XV American Continental 2022"]
[Site "San Salvador"]
[Date "2022.05.06"]
[Round "6.5"]
[White "Salinas Herrera, Pablo"]
[Black "Diaz Rosas, Julio Cesar"]
[Result "1-0"]
[ECO "B30"]
[WhiteElo "2534"]
[BlackElo "2351"]
[Annotator "TA"]
[PlyCount "37"]
[EventDate "2022.05.02"]
[EventCountry "ESA"]
[SourceTitle "playchess.com"]
[Source "ChessBase"]
[SourceQuality "1"]
[TimeControl "40/5400+30:1800+30"]

{[%evp 9,37,80,73,39,52,60,48,63,90,89,92,68,74,72,34,11,166,168,162,176,168,162,157,171,182,177,172,190,221,173]} 1. e4 {[%emt 0:00:03]} c5 {[%emt 0:05:33]} 2. Nf3 {[%emt 0:00:10]} Nc6 {[%emt 0:00:10]} 3. c3 {[%emt 0:04:20]} e5 {[%emt 0:02:28]} 4. Bc4 {[%emt 0:03:28]} g6 {[%emt 0:07:29]} 5. d4 {[%emt 0:07:19]} cxd4 {[%emt 0:00:08]} 6. O-O {[%emt 0:04:18][%cal Rc3d4] B22: Sicilian: 2 c3.} Bg7 $1 {[%emt 0:03:20]} 7. cxd4 {[%emt 0:05:35]} exd4 {[%emt 0:02:07] [#]} 8. Bf4 $146 {[%emt 0:09:00] White is slightly better.} ({Predecessor:} 8. Bg5 Nge7 9. e5 O-O 10. Nbd2 d6 11. exd6 Qxd6 12. Ne4 Qb4 13. Rc1 Bg4 14. a3 Qxb2 {0-1 (23) Miljkovic,M (2399)-Irizanin,R (2301) Vrnjacka Banja 2006}) 8... Nge7 {[%emt 0:08:14]} 9. Bd6 {[%emt 0:03:16][%mdl 1024] White has strong compensation.} Na5 {[%emt 0:12:28]} 10. Bd3 {[%emt 0:09:24] And now b4 would win. White is much more active.} b5 {[%emt 0:08:04]} ({Weaker is} 10... Qb6 11. e5 $16) 11. Na3 {[%emt 0:04:54]} a6 {[%emt 0:00:15]} 12. Qc1 {[%emt 0:03:04] Hoping for Bc7.} Nec6 $2 {[%emt 0:03:21] [#] A mistake that costs the game.} (12... Nac6 $1 $11) 13. Bxb5 $1 $18 {[%emt 0:01:43][%mdl 512] White is clearly better.} Nb7 {[%emt 0:06:58]} (13... axb5 $2 14. Nxb5 f6 15. Nc7+ Kf7 16. Nxa8) 14. Bxc6 {[%emt 0:00:42]} dxc6 {[%emt 0:00:07]} 15. Qxc6+ {[%emt 0:00:16]} Qd7 {[%emt 0:00:05]} 16. Qxd7+ {[%emt 0:00:47]} Bxd7 {[%emt 0:00:05]} 17. Be5 {[%emt 0:00:18]} Bxe5 {[%emt 0:00:21]} 18. Nxe5 {[%emt 0:00:04]} Be6 {[%emt 0:00:06]} 19. Rfd1 {[%emt 0:00:22] Weighted Error Value: White=0.06 (flawless) /Black=0.27 (precise)} 1-0

[Event "XV American Continental 2022"]
[Site "San Salvador"]
[Date "2022.05.06"]
[Round "6.6"]
[White "Hungaski, Robert"]
[Black "Giron, Jorge Ernesto"]
[Result "1/2-1/2"]
[ECO "E19"]
[WhiteElo "2521"]
[BlackElo "2257"]
[Annotator "TA"]
[PlyCount "64"]
[EventDate "2022.05.02"]
[EventCountry "ESA"]
[SourceTitle "playchess.com"]
[Source "ChessBase"]
[SourceQuality "1"]
[TimeControl "40/5400+30:1800+30"]

{[%evp 18,64,15,8,12,16,18,19,19,0,25,30,26,28,26,35,38,20,31,31,33,23,23,24,29,24,26,25,25,17,21,0,0,0,0,-29,-34,-47,-40,-43,0,0,0,0,0,0,0,0,0]} 1. d4 {[%emt 0:05:07]} Nf6 {[%emt 0:01:31]} 2. c4 {[%emt 0:00:13]} e6 {[%emt 0:00:05]} 3. Nf3 {[%emt 0:00:05]} b6 {[%emt 0:00:06]} 4. g3 {[%emt 0:00:41]} Ba6 {[%emt 0:00:05]} 5. Qa4 {[%emt 0:01:16]} Be7 {[%emt 0:04:41]} 6. Bg2 {[%emt 0:00:07]} O-O {[%emt 0:01:49]} 7. Nc3 {[%emt 0:09:57]} Bb7 {[%emt 0:07:12]} 8. O-O {[%emt 0:06:25]} Ne4 {[%emt 0:00:51]} 9. Qc2 {[%emt 0:04:27]} Nxc3 {[%emt 0:00:11] 9...Nxc3 has lost popularity.} 10. Qxc3 {[%emt 0:00:20]} Na6 {[%emt 0:01:23] E19: Queen's Indian: Old Main Line with 7...Ne4 8 Qc2 Nxc3 8 Qxc3.} 11. b3 {[%emt 0:01:49]} c5 {[%emt 0:04:05]} 12. Bb2 {[%emt 0:00:39]} Bf6 {[%emt 0:00:16]} 13. Qd2 {[%emt 0:13:21] [#]} Qc8 $146 {[%emt 0:10:51]} ({Predecessor:} 13... d5 14. dxc5 Nxc5 15. cxd5 Bxd5 16. Bxf6 Qxf6 17. Qe3 Rad8 18. Rad1 Bxf3 19. Bxf3 Qb2 20. Ra1 g6 21. Qc1 Qf6 22. Qc2 a5 23. Rfd1 Rxd1+ 24. Rxd1 Rd8 25. Rxd8+ Qxd8 {½-½ (24) Zielaz,T (1868)-Admakin,V (1620) LSS email 2016}) 14. Rfd1 {[%emt 0:04:36]} d5 {[%emt 0:04:28]} 15. dxc5 {[%emt 0:03:49]} (15. cxd5 {is more complex.} Bxd5 16. dxc5 Nxc5 17. Bxf6 Ne4 18. Qd4) 15... Bxb2 {[%emt 0:00:11]} 16. Qxb2 {[%emt 0:00:12]} Nxc5 {[%emt 0:00:03]} 17. Rac1 {[%emt 0:05:31][%cal Ba1c1,Bc1c4,Bc4g4][%mdl 32]} dxc4 {[%emt 0:03:10]} 18. Rxc4 {[%emt 0:00:34] [#] Strongly threatening b4.} Bd5 {[%emt 0:00:08]} 19. Rg4 {[%emt 0:00:24][%csl Gg4][%cal Rb2g7]} f6 {[%emt 0:00:05]} 20. Rgd4 {[%emt 0:02:54]} a5 {[%emt 0:12:25]} 21. Nh4 {[%emt 0:09:45][%cal Oh4f5] Threatens to win with Nf5!} Bxg2 {[%emt 0:00:36]} 22. Nxg2 {[%emt 0:00:05]} e5 {[%emt 0:02:40]} 23. R4d2 {[%emt 0:09:42]} Ne4 {[%emt 0:01:40]} 24. Rd7 {[%emt 0:01:47]} (24. Rc2 $5 {[%cal Rc2c8]} Qb7 25. f3 $11) 24... Nc3 {[%emt 0:02:28]} 25. R1d3 {[%emt 0:05:42]} Nb5 {[%emt 0:01:06]} 26. Ne3 {[%emt 0:00:37]} (26. R3d5 $5 {[%cal Rg2e3]}) 26... Nd4 {[%emt 0:00:39] Against Nf5} 27. Rd5 {[%emt 0:02:02]} Qc6 {[%emt 0:03:31]} 28. Rd2 {[%emt 0:01:47]} Rfd8 {[%emt 0:01:20]} 29. Rxd8+ {[%emt 0:01:47] The position is equal.} Rxd8 {[%emt 0:00:17][%cal Ba8d8,Bd8d4,Bd4d2][%mdl 32]} 30. Nf5 {[%emt 0:01:49] [#] Black must now prevent Ne7+.} Qe4 {[%emt 0:05:06][%cal Od4f3] Hoping for ...Nf3+!} ({Don't do} 30... Nxe2+ 31. Kf1 Nxg3+ 32. Nxg3 $16) 31. Nxd4 {[%emt 0:00:10]} Rxd4 {[%emt 0:00:05]} 32. Qc1 {[%emt 0:01:07]} Rxd2 {[%emt 0:00:37] Weighted Error Value: White=0.06 (flawless) /Black=0.04 (flawless)} 1/2-1/2

[Event "XV American Continental 2022"]
[Site "San Salvador"]
[Date "2022.05.06"]
[Round "6.7"]
[White "Valdes Romero, Leonardo"]
[Black "Morovic Fernandez, Ivan"]
[Result "0-1"]
[ECO "E67"]
[WhiteElo "2403"]
[BlackElo "2495"]
[Annotator "TA"]
[PlyCount "132"]
[EventDate "2022.05.02"]
[EventCountry "ESA"]
[SourceTitle "playchess.com"]
[Source "ChessBase"]
[SourceQuality "1"]
[TimeControl "40/5400+30:1800+30"]

{[%evp 20,132,18,0,8,11,24,-51,-22,-40,-55,-29,-46,-41,-37,-47,-36,-46,-33,-25,-13,-11,-8,-15,-10,-8,0,0,0,0,-7,-9,-5,-22,2,-14,-15,-25,-21,-33,-35,-64,-36,-93,-77,-60,-32,-39,-29,-32,-44,-31,0,0,0,0,0,0,0,0,0,0,0,0,0,0,0,0,0,-30,-13,-30,-30,-30,-4,-4,-4,-8,-8,-8,-9,-9,-9,-9,-15,-16,-14,-14,0,0,0,0,0,0,0,0,0,0,0,0,0,0,0,0,0,0,0,-29968,-29966,-29965,-12676,-29961,-1818,-29983,-29981]} 1. Nf3 {[%emt 0:02:23]} Nf6 {[%emt 0:00:37]} 2. g3 {[%emt 0:02:45]} g6 {[%emt 0:00:51]} 3. Bg2 {[%emt 0:00:15]} Bg7 {[%emt 0:00:06]} 4. c4 {[%emt 0:00:36]} O-O {[%emt 0:00:14]} 5. Nc3 {[%emt 0:00:13]} d6 {[%emt 0:00:22]} 6. d4 {[%emt 0:01:29]} Nbd7 {[%emt 0:01:49]} 7. O-O {[%emt 0:00:16]} e5 {[%emt 0:00:04]} 8. h3 {[%emt 0:00:15]} Re8 {[%emt 0:01:29]} 9. dxe5 {[%emt 0:07:56]} dxe5 {[%emt 0:03:44]} 10. Be3 {[%emt 0:01:47]} c6 {[%emt 0:04:02]} 11. Qb3 {[%emt 0:08:45]} Qa5 {[%emt 0:10:51] E67: King's Indian: Fianchetto: 6...Nbd7.} 12. a3 {[%emt 0:21:58]} Nc5 {[%emt 0:04:40] [#]} 13. Qa2 $146 {[%emt 0:02:49]} (13. Qb4 $11 Qxb4 14. axb4) ({Predecessor:} 13. Qb4 Qxb4 14. axb4 Na6 15. b5 cxb5 16. Nxb5 Ne4 17. Rxa6 bxa6 18. Nc7 Bb7 19. Nxe8 Rxe8 20. Bxa7 {½-½ (41) Peptan,C (2395)-Vajda,L (2597) Medias 2016}) 13... Nce4 $15 {[%emt 0:01:17] Black is slightly better.} 14. Nxe4 {[%emt 0:18:02]} Nxe4 {[%emt 0:01:16]} 15. Rac1 {[%emt 0:00:08]} Be6 {[%emt 0:03:42]} 16. Ng5 {[%emt 0:04:20]} Nxg5 {[%emt 0:02:54]} 17. Bxg5 {[%emt 0:00:05]} e4 {[%emt 0:06:56]} 18. h4 {[%emt 0:03:55]} h6 {[%emt 0:02:57]} 19. Be3 {[%emt 0:02:09]} f5 {[%emt 0:00:31]} 20. b3 {[%emt 0:01:22]} b5 {[%emt 0:15:49]} 21. Bd2 {[%emt 0:04:55]} Qa6 {[%emt 0:02:30]} 22. Bc3 {[%emt 0:02:00]} Bxc3 {[%emt 0:08:28]} 23. Rxc3 {[%emt 0:00:19]} bxc4 {[%emt 0:00:23]} 24. bxc4 {[%emt 0:00:34]} Rad8 {[%emt 0:00:49]} 25. Qc2 {[%emt 0:01:47]} Qa5 {[%emt 0:04:59]} 26. c5 {[%emt 0:04:32]} Re7 {[%emt 0:00:53][%cal Be8e7,Be7b7,Bb7b2][%mdl 32]} 27. Qc1 {[%emt 0:01:16]} Kh7 {[%emt 0:02:18]} 28. Qe3 {[%emt 0:00:11]} Qc7 {[%emt 0:05:02]} 29. Rfc1 {[%emt 0:02:33]} Qe5 {[%emt 0:01:43]} 30. R3c2 {[%emt 0:00:33]} Rb7 {[%emt 0:02:48] 0x0.000a022e4394dp-1022s more active pieces.} 31. Rd2 {[%emt 0:01:12]} (31. Qc3 $1 $15 Qg7 32. Qa5) 31... Rxd2 $17 {[%emt 0:04:17]} 32. Qxd2 {[%emt 0:00:04]} Bd5 {[%emt 0:01:39]} 33. e3 {[%emt 0:02:42]} Qb2 {[%emt 0:01:50]} 34. Qxb2 {[%emt 0:01:55]} Rxb2 $11 {[%emt 0:00:03][%mdl 4096] Endgame KRB-KRB} 35. Bf1 {[%emt 0:00:20]} a5 {[%emt 0:04:43]} 36. Bc4 $1 {[%emt 0:00:33] Prevents Ra2.} Bxc4 {[%emt 0:00:19]} 37. Rxc4 {[%emt 0:00:05] KR-KR} Rb1+ {[%emt 0:00:19]} 38. Kg2 {[%emt 0:00:05]} h5 {[%emt 0:00:23]} 39. Rd4 {[%emt 0:02:05]} Rc1 {[%emt 0:00:11]} 40. Rd7+ {[%emt 0:00:33]} Kh6 {[%emt 0:00:05]} 41. Ra7 {[%emt 0:30:41]} Rxc5 {[%emt 0:30:05]} 42. a4 {[%emt 0:00:31]} g5 {[%emt 0:01:38]} 43. Re7 {[%emt 0:00:00]} g4 {[%emt 0:00:00]} 44. Rd7 {[%emt 0:00:00]} Rc4 {[%emt 0:00:00]} 45. Ra7 {[%emt 0:00:00]} Rxa4 {[%emt 0:00:00]} 46. Ra6 {[%emt 0:00:00]} Ra1 {[%emt 0:00:00] [#] ...a4 is the strong threat.} 47. Rxc6+ {[%emt 0:00:00]} Kg7 {[%emt 0:00:00] Hoping for ...a4.} 48. Rc5 {[%emt 0:00:00]} Kf6 {[%emt 0:00:00] Strongly threatening ...a4.} 49. Rc6+ {[%emt 0:00:00]} Ke5 {[%emt 0:00:00] Threatens to win with ...a4.} 50. Rc5+ {[%emt 0:00:00]} Ke6 {[%emt 0:00:00] White must now prevent ...a4.} 51. Rc6+ {[%emt 0:00:00]} Kd5 {[%emt 0:00:00]} 52. Rh6 {[%emt 0:00:22]} a4 {[%emt 0:00:00]} 53. Rxh5 {[%emt 0:00:08]} a3 {[%emt 0:00:19]} 54. Rxf5+ {[%emt 0:00:05]} Kc4 {[%emt 0:00:02]} 55. Ra5 {[%emt 0:02:54]} Kb4 {[%emt 0:01:15]} 56. Ra8 {[%emt 0:00:05]} Rc1 {[%emt 0:01:31]} (56... a2 $2 57. h5 $18) (56... Rd1 $5 57. Rb8+ (57. h5 $2 Rd6 $19) 57... Kc4 58. Rc8+ (58. Ra8 Kb4 $11) 58... Kb5 59. Rb8+ Kc5 60. Rc8+ Kb5 61. Rb8+ Ka4 62. Ra8+ Kb4 63. Rb8+ (63. h5 $2 Rd6 $19) 63... Kc5 64. Rc8+ Kb5 $11) 57. Rb8+ $1 {[%emt 0:00:35]} Kc3 {[%emt 0:01:15]} (57... Ka4 $5 58. Ra8+ Kb4 59. Rb8+ Kc3 60. Rc8+ Kb2 61. Rb8+ Kc3 62. Rc8+ Kb2 63. Rb8+ Kc3 $11) 58. Ra8 {[%emt 0:00:26]} Kb2 {[%emt 0:00:19]} (58... Kb4 $5 59. Rb8+ Ka4 60. Ra8+ Kb3 61. Rb8+ Kc3 $11) 59. Rb8+ {[%emt 0:00:06]} Kc3 {[%emt 0:00:12]} (59... Ka1 $5 60. h5 a2 $11) 60. Ra8 {[%emt 0:00:08]} Kb2 {[%emt 0:00:03]} (60... Kb4 $5 61. Rb8+ Ka4 62. Ra8+ Kb3 63. Rb8+ Kc3 $11) 61. Rb8+ {[%emt 0:00:07]} Ka1 {[%emt 0:01:19]} 62. h5 $1 {[%emt 0:04:51]} Rb1 {[%emt 0:03:26]} 63. Ra8 $2 {[%emt 0:00:26][%mdl 8192] [#]} (63. Rg8 $11) 63... a2 {[%emt 0:00:07]} 64. h6 {[%emt 0:00:46]} Rb7 {[%emt 0:00:05] ( -> ...Kb1)} 65. Rd8 {[%emt 0:00:28]} Kb1 {[%emt 0:00:58]} (65... Kb2 $142 66. h7 Rxh7 67. Rb8+ Ka1 68. Kg1 Rd7 69. Kg2 Rd2 70. Rb4 Rb2 71. Rxe4 Kb1 72. Ra4 a1=Q 73. Rxg4 Kc2 74. Rg5 Kd3 75. Rf5 Qa8+ 76. Kh2 Rb1 77. Kh3 Qe4 78. Rf4 Rh1+ 79. Kg4 Qe6+ 80. Kf3 Qd5+ 81. e4 Qh5+ 82. Rg4 Re1 83. e5 Rf1 84. e6 Qd5+ 85. Kf4 Rxf2#) 66. Rd1+ {[%emt 0:00:29]} Kc2 {[%emt 0:00:11] Weighted Error Value: White=0.08 (flawless) /Black=0.05 (flawless)} 0-1

[Event "XV American Continental 2022"]
[Site "San Salvador"]
[Date "2022.05.06"]
[Round "6.8"]
[White "Kaidanov, Gregory"]
[Black "Chavez, Ricardo Ernesto"]
[Result "1-0"]
[ECO "A05"]
[WhiteElo "2556"]
[BlackElo "2184"]
[Annotator "TA"]
[PlyCount "65"]
[EventDate "2022.05.02"]
[EventCountry "ESA"]
[SourceTitle "playchess.com"]
[Source "ChessBase"]
[SourceQuality "1"]
[TimeControl "40/5400+30:1800+30"]

{[%evp 20,65,32,24,25,18,27,20,33,25,40,28,82,50,123,136,124,126,139,143,138,128,117,128,128,127,120,112,108,97,117,95,92,101,87,91,127,124,363,375,377,282,261,208,308,301,29992,29993]} 1. Nf3 {[%emt 0:00:04]} Nf6 {[%emt 0:14:09]} 2. g3 {[%emt 0:00:20]} d6 {[%emt 0:01:05]} 3. d4 {[%emt 0:00:57]} Nbd7 {[%emt 0:00:08]} 4. Bg2 {[%emt 0:00:35]} e5 {[%emt 0:00:09]} 5. c4 {[%emt 0:05:11]} c6 {[%emt 0:00:09]} 6. Nc3 {[%emt 0:00:18]} e4 {[%emt 0:03:18]} 7. Nd2 {[%emt 0:07:44]} d5 {[%emt 0:00:13]} 8. cxd5 {[%emt 0:00:11]} cxd5 {[%emt 0:00:09]} 9. f3 {[%emt 0:00:07]} exf3 {[%emt 0:01:00]} 10. Nxf3 {[%emt 0:00:06]} Be7 {[%emt 0:00:17]} 11. O-O {[%emt 0:01:00]} O-O {[%emt 0:00:37] A54: Old Indian Defence with Nf3, but without e4.} 12. Nh4 {[%emt 0:05:37]} Nb6 {[%emt 0:11:18]} 13. Nf5 {[%emt 0:00:52]} Bxf5 {[%emt 0:01:11] The position is equal.} 14. Rxf5 {[%emt 0:00:03] [#]} h6 $146 {[%emt 0:01:37]} ({Predecessor:} 14... Qd7 15. Qd3 Rfe8 16. Bg5 Ne4 17. Nxe4 dxe4 18. Bxe4 g6 19. Ra5 f5 20. Bxe7 fxe4 {1-0 (81) Ewert,H (2274)-Chennaoui,Y (2123) Reinstorf 2022}) 15. Qd3 {[%emt 0:06:07]} Re8 {[%emt 0:04:13]} (15... Bb4 $11) 16. Bd2 {[%emt 0:05:04] White is more active.} Nc4 {[%emt 0:07:24]} (16... Rc8 $14) 17. Nxd5 $16 {[%emt 0:04:23]} Nxd2 {[%emt 0:01:04]} 18. Qxd2 {[%emt 0:00:33]} Nxd5 {[%emt 0:01:18]} 19. Bxd5 {[%emt 0:00:19]} (19. Rxd5 Qb6 $14) 19... Bf6 {[%emt 0:01:12]} 20. Raf1 {[%emt 0:13:47]} Qb6 {[%emt 0:03:25]} 21. R1f4 {[%emt 0:05:57]} Rad8 {[%emt 0:06:01][%cal Ba8d8,Bd8d6,Bd6b6][%mdl 32]} 22. e3 {[%emt 0:06:26]} Re7 {[%emt 0:04:15]} 23. Qf2 {[%emt 0:02:28]} Rd6 {[%emt 0:14:36]} 24. h4 {[%emt 0:01:38]} Qc7 {[%emt 0:03:46]} 25. Kh2 {[%emt 0:05:11]} (25. Rxf6 Rxf6 26. Rxf6 gxf6 $15) 25... Qc1 {[%emt 0:00:54]} 26. Rf3 {[%emt 0:00:23]} (26. Rxf6 $6 gxf6 27. Rg4+ Kf8 $11) 26... Rc7 {[%emt 0:02:39]} 27. Bb3 {[%emt 0:01:07] Prevents Rc2.} Rb6 {[%emt 0:00:27][%cal Ob6b3] [#] ...Rxb3! is the strong threat.} 28. Qg2 {[%emt 0:05:15]} Re7 $2 {[%emt 0:01:15]} (28... Qe1 $16 29. R5f4 Qc1) 29. Rc5 $18 {[%emt 0:01:16]} Qe1 {[%emt 0:01:00]} 30. Rc8+ {[%emt 0:00:37]} Kh7 {[%emt 0:00:06]} 31. Qc2+ {[%emt 0:06:30]} g6 {[%emt 0:00:14]} 32. h5 $1 {[%emt 0:00:38][%cal Ob3f7] [#] And now Bxf7! would win. The board is on fire.} Bxd4 $2 {[%emt 0:03:40]} (32... Rb5 $18 33. d5 (33. Rxf6 $2 {gets mated.} Rxh5+ 34. Kg2 Qh1+ 35. Kf2 Rh2#) (33. hxg6+ fxg6 34. Kg2 Rh5 $16) 33... Rb6) 33. Bxf7 {[%emt 0:01:51] Black got outplayed after the opening.  Weighted Error Value: White=0.13 (very precise) /Black=0.46} ({But not} 33. exd4 $2 Re2+ 34. Qxe2 Qxe2+ 35. Kg1 Qxf3 $19) 1-0